bitfinex/quotes_BTCUSD_20250410
["timestamp","ask_amount","ask_price","bid_price","bid_amount"]
[1744281289092,0.257034,81701.0,81697.0,0.244801]
[1744281289855,0.257034,81701.0,81698.0,0.244802]
[1744281290276,0.4,81700.0,81698.0,0.244802]
[1744281290648,0.644798,81700.0,81698.0,0.244802]
[1744281290851,0.244801,81699.0,81695.0,0.24481]
[1744281291075,0.412239,81700.0,81691.0,0.244824]
[1744281291076,0.01224,81696.0,81691.0,0.244824]
[1744281291281,0.24481,81696.0,81692.0,0.244822]
[1744281291479,0.244815,81695.0,81692.0,0.244822]
[1744281291795,0.244813,81695.0,81692.0,0.244821]
[1744281292016,0.257055,81696.0,81693.0,0.244817]
[1744281292197,0.00729098,81694.0,81693.0,0.244817]
[1744281292346,0.257045,81698.0,81694.0,0.244814]
[1744281292548,0.0001688,81702.0,81700.0,0.244795]
[1744281292743,0.0001688,81702.0,81701.0,0.244795]
[1744281294016,0.0001688,81702.0,81699.0,0.257035]
[1744281294017,0.0001688,81702.0,81699.0,0.244799]
[1744281294327,0.244806,81698.0,81695.0,0.244811]
[1744281294532,0.2448,81700.0,81696.0,0.244807]
[1744281294766,0.2571998,81702.0,81698.0,0.244801]
[1744281294951,0.0001688,81702.0,81699.0,0.244799]
[1744281295145,0.0001688,81702.0,81700.0,0.244795]
[1744281295501,0.244797,81701.0,81699.0,0.244799]
[1744281295726,0.25349636,81702.0,81699.0,0.244799]
[1744281296572,0.00853456,81701.0,81699.0,0.244799]
[1744281296777,0.00853456,81701.0,81700.0,0.244798]
[1744281297287,0.40853456,81701.0,81700.0,0.244798]
[1744281299558,0.40853456,81701.0,81700.0,0.257037]
[1744281299559,0.00853456,81701.0,81700.0,0.257037]
[1744281299764,0.00853456,81701.0,81700.0,0.39213167]
[1744281299973,0.0001688,81702.0,81701.0,0.27157485]
[1744281300171,0.0001688,81702.0,81701.0,0.39212867]
[1744281300700,0.0001688,81702.0,81701.0,0.73212867]
[1744281301124,0.0001688,81702.0,81701.0,0.78102867]
[1744281301338,0.00853456,81715.0,81714.0,0.61082764]
[1744281301565,0.0001688,81717.0,81716.0,0.596987]
[1744281301819,0.0001688,81717.0,81716.0,0.73208167]
[1744281302450,0.0001688,81717.0,81716.0,0.77988167]
[1744281302879,0.0001688,81717.0,81716.0,0.78914159]
[1744281303923,0.00027287,81717.0,81716.0,0.78914159]
[1744281304213,0.00027287,81717.0,81716.0,0.74134159]
[1744281304417,0.00027287,81717.0,81716.0,0.14435459]
[1744281304613,0.012237,81713.0,81709.0,0.244769]
[1744281304789,0.244755,81715.0,81709.0,0.12055382]
[1744281304790,0.244765,81711.0,81709.0,0.12055382]
[1744281304968,0.012238,81712.0,81704.0,0.012239]
[1744281304969,0.00762912,81712.0,81706.0,0.012239]
[1744281305172,0.244779,81707.0,81704.0,0.14344]
[1744281305403,0.257011,81709.0,81706.0,0.244779]
[1744281305758,0.244783,81706.0,81704.0,0.14344]
[1744281306072,0.244768,81710.0,81705.0,0.244783]
[1744281306276,0.257022,81705.0,81701.0,0.00937422]
[1744281306482,0.244789,81704.0,81701.0,0.244794]
[1744281306678,0.257022,81705.0,81702.0,0.244791]
[1744281306883,0.244777,81707.0,81703.0,0.244788]
[1744281307090,0.244782,81706.0,81703.0,0.244788]
[1744281307272,0.2523515,81706.0,81703.0,0.244788]
[1744281307467,0.2523505,81706.0,81700.0,0.244797]
[1744281307763,0.012239,81700.0,81694.0,0.14344]
[1744281307906,0.244801,81700.0,81695.0,0.244813]
[1744281308122,0.00757837,81699.0,81697.0,0.244806]
[1744281308325,0.244795,81701.0,81697.0,0.244806]
[1744281308525,0.00757615,81700.0,81697.0,0.244806]
[1744281309594,0.01224,81694.0,81689.0,0.14344]
[1744281309795,0.244819,81693.0,81687.0,0.244836]
[1744281310051,0.244819,81693.0,81680.0,0.0122567]
[1744281310052,0.244839,81686.0,81683.0,0.244848]
[1744281310254,0.257096,81681.0,81680.0,0.0122567]
[1744281310457,0.257096,81681.0,81661.0,0.045637]
[1744281310458,0.257143,81666.0,81662.0,1.259897]
[1744281310756,0.012243,81674.0,81670.0,0.244887]
[1744281310757,0.25712,81674.0,81670.0,0.244887]
[1744281311055,0.25235651,81673.0,81669.0,0.24489]
[1744281311366,0.244881,81672.0,81666.0,0.244896]
[1744281311556,0.26460151,81673.0,81669.0,0.24489]
[1744281311787,0.26460151,81673.0,81670.0,0.244887]
[1744281311982,0.244882,81672.0,81668.0,0.294893]
[1744281312189,0.257134,81669.0,81668.0,0.05]
[1744281312365,0.257143,81666.0,81665.0,0.01299801]
[1744281312564,0.3624773,81666.0,81665.0,0.00076294]
[1744281315651,0.48303112,81666.0,81665.0,0.00076294]
[1744281316473,0.49152124,81666.0,81665.0,0.00076294]
[1744281317096,0.89152124,81666.0,81665.0,0.00076294]
[1744281318574,0.88303112,81666.0,81665.0,0.00076294]
[1744281319373,0.5053343,81666.0,81665.0,0.00076294]
[1744281319563,0.5053343,81666.0,81665.0,0.13356176]
[1744281319564,0.4072343,81666.0,81665.0,0.13356176]
[1744281319787,0.0072343,81666.0,81665.0,0.13356176]
[1744281320182,0.257111,81677.0,81668.0,0.012244]
[1744281320183,0.4,81677.0,81668.0,0.012244]
[1744281320384,0.4,81677.0,81672.0,0.244878]
[1744281320598,0.4,81677.0,81671.0,0.012244]
[1744281320973,0.644869,81677.0,81673.0,0.244878]
[1744281321169,0.644869,81677.0,81673.0,0.25698098]
[1744281321385,0.644869,81677.0,81673.0,0.244878]
[1744281322111,0.657112,81677.0,81673.0,0.244878]
[1744281322317,0.00714821,81676.0,81674.0,0.244875]
[1744281323427,0.00714821,81676.0,81675.0,0.244872]
[1744281323925,0.4,81676.0,81675.0,0.257115]
[1744281324164,0.40714821,81676.0,81675.0,0.257115]
[1744281324586,0.40714821,81676.0,81675.0,0.37766882]
[1744281324926,0.00714821,81676.0,81675.0,0.37766882]
[1744281325121,0.01224,81694.0,81688.0,0.244831]
[1744281325349,0.244822,81692.0,81688.0,0.244831]
[1744281325703,0.244828,81690.0,81686.0,0.244837]
[1744281326077,0.244828,81690.0,81682.0,0.244851]
[1744281326078,0.00715794,81689.0,81682.0,0.244851]
[1744281326280,0.00715794,81689.0,81683.0,0.244848]
[1744281326281,0.244836,81688.0,81683.0,0.244848]
[1744281326473,0.244837,81687.0,81683.0,0.25709]
[1744281326664,0.25199716,81687.0,81683.0,0.244848]
[1744281328049,0.00716016,81687.0,81684.0,0.244844]
[1744281328801,0.00725669,81686.0,81683.0,0.244842]
[1744281329350,0.244816,81694.0,81683.0,0.244842]
[1744281329568,0.0072578,81690.0,81683.0,0.244842]
[1744281329764,0.0072578,81690.0,81685.0,0.244841]
[1744281329987,0.244816,81694.0,81687.0,0.244835]
[1744281330186,0.244825,81691.0,81686.0,0.244838]
[1744281330401,0.00724959,81690.0,81688.0,0.244834]
[1744281330634,0.00724959,81690.0,81689.0,0.244831]
[1744281330862,0.244823,81692.0,81689.0,0.244831]
[1744281331083,0.00725487,81690.0,81689.0,0.244831]
[1744281331284,0.00725487,81690.0,81688.0,0.244834]
[1744281331506,0.012241,81690.0,81679.0,0.012243]
[1744281331709,0.00725487,81689.0,81685.0,0.24484]
[1744281331843,0.00725487,81689.0,81688.0,0.257075]
[1744281332067,0.4,81693.0,81691.0,0.244824]
[1744281332231,0.4,81693.0,81692.0,0.244822]
[1744281332432,0.644821,81693.0,81689.0,0.244831]
[1744281332632,0.644821,81693.0,81682.0,0.257091]
[1744281332633,0.24484,81686.0,81680.0,0.244856]
[1744281332887,0.257077,81688.0,81685.0,0.244842]
[1744281333089,0.244843,81685.0,81682.0,0.24485]
[1744281333385,0.244848,81683.0,81677.0,0.244866]
[1744281333564,0.244848,81683.0,81677.0,0.257109]
[1744281333736,0.244845,81686.0,81679.0,0.012243]
[1744281333939,0.244846,81684.0,81681.0,0.244852]
[1744281334178,0.257078,81687.0,81682.0,0.244849]
[1744281334396,0.244839,81686.0,81683.0,0.244848]
[1744281334605,0.244838,81687.0,81684.0,0.244845]
[1744281334941,0.41224,81693.0,81686.0,0.012241]
[1744281334942,0.4,81693.0,81686.0,0.012241]
[1744281335139,0.4,81693.0,81692.0,0.244822]
[1744281335417,0.644819,81693.0,81687.0,0.244835]
[1744281335626,0.644819,81693.0,81686.0,0.012241]
[1744281335627,0.244822,81692.0,81690.0,0.244827]
[1744281335828,0.4,81693.0,81691.0,0.244824]
[1744281335983,0.4,81693.0,81689.0,0.24483]
[1744281336178,0.644821,81693.0,81690.0,0.244827]
[1744281336381,0.64482,81693.0,81690.0,0.244827]
[1744281336585,0.244837,81687.0,81680.0,0.012242]
[1744281336761,0.244837,81687.0,81682.0,0.244851]
[1744281336762,0.012241,81687.0,81682.0,0.244851]
[1744281336967,0.244849,81683.0,81679.0,0.244858]
[1744281337224,0.02952479,81682.0,81681.0,0.244854]
[1744281337649,0.244846,81684.0,81681.0,0.244854]
[1744281337843,0.02952396,81682.0,81681.0,0.244854]
[1744281338048,0.244846,81684.0,81681.0,0.244854]
[1744281338561,0.02952312,81683.0,81681.0,0.244854]
[1744281339066,0.02952312,81683.0,81680.0,0.244857]
[1744281339563,0.27437312,81683.0,81678.0,0.257106]
[1744281339777,0.02952312,81683.0,81678.0,0.012243]
[1744281339975,0.244852,81682.0,81680.0,0.244857]
[1744281340390,0.02952396,81681.0,81680.0,0.244857]
[1744281341638,0.257099,81680.0,81676.0,0.24529254]
[1744281341804,0.02952396,81681.0,81677.0,0.012243]
[1744281342171,0.02952815,81679.0,81677.0,0.012243]
[1744281342305,0.244852,81682.0,81677.0,0.012243]
[1744281342510,0.012242,81683.0,81676.0,0.00042554]
[1744281342511,0.012243,81677.0,81676.0,0.00042554]
[1744281342712,0.257109,81677.0,81676.0,0.00042554]
[1744281342915,0.28661772,81677.0,81676.0,0.00042554]
[1744281345118,0.29513641,81677.0,81676.0,0.00042554]
[1744281358003,0.03802741,81677.0,81676.0,0.24529454]
[1744281360133,0.03802741,81677.0,81676.0,0.00042554]
[1744281360890,0.03802741,81677.0,81676.0,0.24529454]
[1744281361092,0.28289341,81677.0,81676.0,0.00042554]
[1744281361545,0.29513641,81677.0,81676.0,0.00042554]
[1744281362058,0.34123641,81677.0,81676.0,0.00042554]
[1744281362217,0.28289341,81677.0,81676.0,0.00042554]
[1744281362433,0.29513641,81677.0,81676.0,0.00042554]
[1744281364354,0.74123641,81677.0,81676.0,0.00042554]
[1744281366006,0.43802741,81677.0,81676.0,0.24529454]
[1744281366490,0.68289341,81677.0,81676.0,0.00042554]
[1744281367291,0.69513641,81677.0,81676.0,0.00042554]
[1744281368239,0.74433641,81677.0,81676.0,0.00042554]
[1744281368449,1.32749023,81677.0,81676.0,0.00042554]
[1744281369347,1.350268,81677.0,81676.0,0.00042554]
[1744281370331,1.36269201,81677.0,81676.0,0.00042554]
[1744281371120,1.22971418,81677.0,81676.0,0.00042554]
[1744281371324,1.350268,81677.0,81676.0,0.00042554]
[1744281371721,1.70266748,81677.0,81676.0,5.4e-07]
[1744281371939,0.690843,81666.0,81663.0,0.000337]
[1744281372148,0.83417459,81666.0,81663.0,0.000337]
[1744281372359,0.8720378,81666.0,81663.0,0.000337]
[1744281372811,1.2720378,81666.0,81663.0,0.000337]
[1744281375102,1.6864378,81666.0,81663.0,0.000337]
[1744281375301,0.597162,81660.0,81659.0,8e-07]
[1744281375617,0.81441582,81660.0,81659.0,8e-07]
[1744281375820,1.24367114,81660.0,81659.0,8e-07]
[1744281376018,1.2749676,81660.0,81659.0,8e-07]
[1744281376384,1.28633794,81660.0,81659.0,8e-07]
[1744281376587,0.354172,81657.0,81656.0,0.0003374]
[1744281376812,0.48324451,81657.0,81656.0,0.0003374]
[1744281377019,0.5124879,81657.0,81656.0,0.0003374]
[1744281377219,0.9124879,81657.0,81656.0,0.0003374]
[1744281377464,0.94663601,81657.0,81656.0,0.0003374]
[1744281379991,1.50667601,81657.0,81656.0,0.0003374]
[1744281382344,1.84667601,81657.0,81656.0,0.0003374]
[1744281382894,1.84667601,81657.0,81651.0,4e-07]
[1744281382895,0.597188,81652.0,81651.0,4e-07]
[1744281383201,0.83541959,81652.0,81651.0,4e-07]
[1744281383405,0.87590064,81652.0,81651.0,4e-07]
[1744281383581,1.43485933,81652.0,81651.0,4e-07]
[1744281384164,1.43528434,81652.0,81651.0,4e-07]
[1744281385766,1.84968434,81652.0,81651.0,4e-07]
[1744281387733,1.97011693,81652.0,81651.0,4e-07]
[1744281387911,1.84968434,81652.0,81651.0,4e-07]
[1744281394887,1.69924434,81652.0,81651.0,4e-07]
[1744281395088,1.84972434,81652.0,81651.0,4e-07]
[1744281396129,1.80292434,81652.0,81651.0,4e-07]
[1744281401307,1.87635434,81652.0,81651.0,4e-07]
[1744281401494,1.75482434,81652.0,81651.0,4e-07]
[1744281401809,1.41482434,81652.0,81651.0,4e-07]
[1744281402702,1.01482434,81652.0,81651.0,4e-07]
[1744281402914,0.07220252,81652.0,81651.0,4e-07]
[1744281403082,0.32939052,81652.0,81651.0,4e-07]
[1744281406637,0.72939052,81652.0,81651.0,4e-07]
[1744281411633,0.32939052,81652.0,81651.0,4e-07]
[1744281412767,0.07220252,81652.0,81651.0,0.2571914]
[1744281412970,0.07220252,81652.0,81651.0,0.3022914]
[1744281413366,0.03172147,81652.0,81651.0,0.2900444]
[1744281413740,0.05234492,81652.0,81651.0,0.2900444]
[1744281414677,0.05234492,81652.0,81651.0,4e-07]
[1744281414876,0.30953292,81652.0,81651.0,4e-07]
[1744281415357,0.31806004,81652.0,81651.0,4e-07]
[1744281415559,0.32942984,81652.0,81651.0,4e-07]
[1744281416920,0.72942984,81652.0,81651.0,4e-07]
[1744281423556,0.84998366,81652.0,81651.0,4e-07]
[1744281423955,1.30958366,81652.0,81651.0,4e-07]
[1744281428101,1.45922366,81652.0,81651.0,4e-07]
[1744281431470,1.41402366,81652.0,81651.0,4e-07]
[1744281433920,1.15683566,81652.0,81651.0,4e-07]
[1744281434893,1.16908266,81652.0,81651.0,4e-07]
[1744281435274,1.41402366,81652.0,81651.0,4e-07]
[1744281437893,0.88664184,81652.0,81651.0,4e-07]
[1744281444118,0.89888884,81652.0,81651.0,4e-07]
[1744281444868,0.88664184,81652.0,81651.0,4e-07]
[1744281445563,0.48664184,81652.0,81651.0,4e-07]
[1744281445935,1.14382984,81652.0,81651.0,4e-07]
[1744281446817,0.88664184,81652.0,81651.0,0.2571914]
[1744281447051,0.88664184,81652.0,81651.0,0.0494004]
[1744281447052,0.48664184,81652.0,81651.0,0.0494004]
[1744281447347,0.04946407,81652.0,81651.0,0.0494004]
[1744281447513,0.02956715,81652.0,81651.0,0.18449507]
[1744281447910,0.00042501,81652.0,81651.0,0.18449507]
[1744281448094,0.00042501,81652.0,81651.0,0.42714522]
[1744281452645,0.00042501,81652.0,81651.0,0.3065914]
[1744281454423,0.00042501,81652.0,81651.0,0.2943444]
[1744281454618,0.00042501,81652.0,81651.0,0.2449444]
[1744281454851,0.02963237,81652.0,81651.0,0.2571914]
[1744281455031,0.00042501,81652.0,81651.0,0.2571914]
[1744281455875,0.00042501,81652.0,81651.0,0.37774522]
[1744281457415,0.00042501,81652.0,81651.0,0.2449444]
[1744281457729,0.02963237,81652.0,81651.0,0.2449444]
[1744281457960,0.00042501,81652.0,81651.0,0.2449444]
[1744281458171,0.02963237,81652.0,81651.0,0.2449444]
[1744281458398,0.00042501,81652.0,81651.0,0.2571914]
[1744281458620,0.02963237,81652.0,81651.0,0.2571914]
[1744281458843,0.00042501,81652.0,81651.0,0.2571914]
[1744281459299,0.02963069,81652.0,81651.0,0.2571914]
[1744281460782,0.00042501,81652.0,81651.0,0.2571914]
[1744281461630,0.02963069,81652.0,81651.0,0.2571914]
[1744281461843,0.00042501,81652.0,81651.0,0.2571914]
[1744281462048,0.02963069,81652.0,81651.0,0.2571914]
[1744281462257,0.00042501,81652.0,81651.0,0.2571914]
[1744281463107,0.00042501,81652.0,81651.0,0.2633114]
[1744281464982,0.00042501,81652.0,81651.0,0.39840607]
[1744281465125,0.00042501,81652.0,81651.0,0.73840607]
[1744281472639,0.00042501,81652.0,81651.0,0.6033114]
[1744281473097,0.00042501,81652.0,81651.0,0.78740607]
[1744281474268,0.00042501,81652.0,81651.0,0.73840607]
[1744281474469,0.00042501,81652.0,81651.0,0.6033114]
[1744281476410,0.00042501,81652.0,81651.0,0.60268335]
[1744281485950,0.00042501,81652.0,81651.0,0.73777802]
[1744281486148,0.00042501,81652.0,81651.0,0.82857802]
[1744281490819,0.00042501,81652.0,81651.0,0.46667382]
[1744281491034,0.00042501,81652.0,81651.0,0.72386482]
[1744281491239,0.03083045,81652.0,81651.0,0.73840567]
[1744281491473,0.00042501,81652.0,81651.0,0.73840567]
[1744281492064,0.00042501,81652.0,81651.0,0.72386482]
[1744281492453,0.00042501,81652.0,81651.0,0.263311]
[1744281492992,0.00042501,81652.0,81651.0,0.00612]
[1744281493316,0.03083038,81652.0,81651.0,0.251064]
[1744281493521,0.00042501,81652.0,81651.0,0.251064]
[1744281493724,0.03938168,81652.0,81651.0,0.251064]
[1744281493861,0.00897631,81652.0,81651.0,0.251064]
[1744281494063,0.03938168,81652.0,81651.0,0.251064]
[1744281494360,0.03938168,81652.0,81651.0,0.00612]
[1744281494559,0.03938168,81652.0,81651.0,0.251064]
[1744281494974,0.03938168,81652.0,81651.0,0.00612]
[1744281495748,0.03938168,81652.0,81651.0,0.263311]
[1744281497929,0.03083038,81652.0,81651.0,0.263311]
[1744281499178,0.0393779,81652.0,81651.0,0.263311]
[1744281499320,0.00897253,81652.0,81651.0,0.263311]
[1744281499956,0.00042501,81652.0,81651.0,0.263311]
[1744281500359,0.03082702,81652.0,81651.0,0.263311]
[1744281501162,0.03082702,81652.0,81651.0,0.00612]
[1744281501357,0.03082702,81652.0,81651.0,0.251064]
[1744281501561,0.07662702,81652.0,81651.0,0.251064]
[1744281501822,0.32156802,81652.0,81651.0,0.00612]
[1744281501960,0.33381502,81652.0,81651.0,0.00612]
[1744281502158,0.34236087,81652.0,81651.0,0.00612]
[1744281506873,0.39146087,81652.0,81651.0,0.00612]
[1744281507506,0.79146087,81652.0,81651.0,0.00612]
[1744281508397,0.77921387,81652.0,81651.0,0.00612]
[1744281508630,0.79146087,81652.0,81651.0,0.00612]
[1744281509178,0.43937287,81652.0,81651.0,0.251064]
[1744281509390,0.68431387,81652.0,81651.0,0.00612]
[1744281509792,0.43937287,81652.0,81651.0,0.263311]
[1744281509994,0.03937287,81652.0,81651.0,0.263311]
[1744281510225,0.03937287,81652.0,81651.0,0.251064]
[1744281510382,0.00897086,81652.0,81651.0,0.263311]
[1744281510583,0.03075396,81652.0,81651.0,0.263311]
[1744281510810,0.00042501,81652.0,81651.0,0.263311]
[1744281511007,0.03075479,81652.0,81651.0,0.263311]
[1744281511215,0.00042501,81652.0,81651.0,0.263311]
[1744281511418,0.03075046,81652.0,81651.0,0.263311]
[1744281511757,0.00042501,81652.0,81651.0,0.263311]
[1744281511893,0.03074963,81652.0,81651.0,0.39840567]
[1744281512091,0.00042501,81652.0,81651.0,0.73840567]
[1744281512872,0.00042501,81652.0,81651.0,0.78580567]
[1744281513072,0.00042501,81652.0,81651.0,0.83230567]
[1744281513232,0.00042501,81652.0,81651.0,0.87046659]
[1744281513746,0.00042501,81652.0,81651.0,0.84169687]
[1744281514351,0.00042501,81652.0,81651.0,0.94133687]
[1744281515476,0.00042501,81652.0,81651.0,0.89483687]
[1744281519799,0.00042501,81652.0,81651.0,0.93983687]
[1744281521398,0.00042501,81652.0,81651.0,0.97795372]
[1744281521602,0.00042501,81652.0,81651.0,0.89483687]
[1744281522079,0.00042501,81652.0,81651.0,0.89479687]
[1744281523442,1e-08,81652.0,81651.0,1.08600713]
[1744281523659,0.0493,81684.0,81683.0,0.24414632]
[1744281523843,0.0476372,81685.0,81684.0,0.244845]
[1744281524047,0.0476372,81685.0,81684.0,0.2509661]
[1744281524221,0.0476372,81685.0,81684.0,0.2632081]
[1744281524424,0.0003372,81685.0,81684.0,0.39830277]
[1744281524835,0.0003372,81685.0,81684.0,0.73834534]
[1744281525048,0.0003372,81685.0,81684.0,0.74744967]
[1744281526435,0.0003372,81685.0,81684.0,0.75988166]
[1744281527226,2e-07,81685.0,81684.0,0.75988166]
[1744281527437,2e-07,81685.0,81684.0,0.80548166]
[1744281528046,4e-07,81693.0,81692.0,0.65690385]
[1744281528252,4e-07,81693.0,81692.0,0.78357827]
[1744281529808,4e-07,81693.0,81692.0,0.88857827]
[1744281530615,0.0001688,81717.0,81716.0,0.352237]
[1744281530616,8e-07,81717.0,81716.0,0.352237]
[1744281530814,0.0001686,81735.0,81729.0,0.02677585]
[1744281530815,7.5e-07,81730.0,81729.0,0.02677585]
[1744281531022,7.5e-07,81730.0,81729.0,0.48977608]
[1744281531387,0.0001686,81735.0,81729.0,0.48977608]
[1744281531388,5.5e-07,81735.0,81734.0,0.36677485]
[1744281531543,4.5e-07,81742.0,81741.0,0.36677385]
[1744281531884,4.5e-07,81742.0,81741.0,0.49344457]
[1744281532025,0.00042599,81742.0,81741.0,0.49344457]
[1744281532406,0.00042599,81742.0,81741.0,0.64040457]
[1744281533704,0.00042599,81742.0,81741.0,0.49344457]
[1744281533890,0.00042599,81742.0,81741.0,0.64056457]
[1744281534089,0.00042599,81742.0,81741.0,0.65310066]
[1744281535899,0.00042599,81742.0,81741.0,0.50598066]
[1744281537118,0.00042599,81742.0,81741.0,0.65306066]
[1744281538576,0.00042599,81742.0,81741.0,0.49344457]
[1744281540331,0.01559459,81748.0,81747.0,0.27142985]
[1744281540490,0.01563711,81748.0,81747.0,0.39198367]
[1744281540684,0.01563711,81748.0,81747.0,0.37744282]
[1744281541071,0.01563711,81748.0,81747.0,0.38355922]
[1744281542197,0.01563711,81748.0,81747.0,0.0061164]
[1744281542397,0.26029111,81748.0,81747.0,0.0061164]
[1744281542608,0.04682307,81748.0,81747.0,0.0061164]
[1744281542853,0.04682307,81748.0,81747.0,0.0183484]
[1744281543265,0.01563711,81748.0,81747.0,0.0183484]
[1744281544050,0.01563711,81748.0,81747.0,0.15588943]
[1744281544246,0.01563711,81748.0,81747.0,0.15344307]
[1744281545879,0.01563711,81748.0,81747.0,0.49344307]
[1744281546436,0.01563711,81748.0,81747.0,0.48121107]
[1744281546695,0.37092311,81748.0,81747.0,0.0061164]
[1744281547128,0.40210185,81748.0,81747.0,0.0061164]
[1744281548176,0.52265567,81748.0,81747.0,0.0061164]
[1744281548540,0.52265567,81748.0,81722.0,0.012236]
[1744281548541,0.012236,81723.0,81718.0,0.00898661]
[1744281548751,0.0311314,81722.0,81721.0,0.244733]
[1744281549015,0.0498,81724.0,81722.0,0.244731]
[1744281549439,0.0498,81724.0,81722.0,0.2508493]
[1744281550099,0.0498425,81724.0,81722.0,0.2508493]
[1744281550701,0.0498425,81724.0,81723.0,0.012236]
[1744281550905,0.0498425,81724.0,81723.0,0.0183542]
[1744281551520,4.25e-05,81724.0,81723.0,0.0183542]
[1744281551881,4.25e-05,81724.0,81723.0,0.0208012]
[1744281552529,4.25e-05,81724.0,81723.0,0.0061182]
[1744281553326,4.25e-05,81724.0,81723.0,0.2508472]
[1744281554108,4.25e-05,81724.0,81723.0,0.0061182]
[1744281554311,0.2447685,81724.0,81723.0,0.0061182]
[1744281555473,0.2570045,81724.0,81723.0,0.0061182]
[1744281556415,4.25e-05,81724.0,81723.0,0.2508472]
[1744281556616,4.25e-05,81724.0,81723.0,0.2630832]
[1744281557068,0.03098103,81724.0,81723.0,0.2630832]
[1744281558047,0.03098103,81724.0,81723.0,0.2508472]
[1744281558443,0.27570703,81724.0,81723.0,0.0061182]
[1744281558654,0.03098103,81724.0,81723.0,0.0061182]
[1744281559048,0.27570703,81724.0,81723.0,0.0061182]
[1744281559468,0.03098103,81724.0,81723.0,0.0061182]
[1744281561004,0.27570703,81724.0,81723.0,0.0061182]
[1744281562411,0.28794303,81724.0,81723.0,0.0061182]
[1744281563970,0.38364303,81724.0,81723.0,0.0061182]
[1744281564318,0.51270932,81724.0,81723.0,0.0061182]
[1744281566926,0.91270932,81724.0,81723.0,0.0061182]
[1744281567300,0.91264714,81724.0,81723.0,0.0061182]
[1744281570251,0.91264714,81724.0,81723.0,2e-07]
[1744281571009,1.25264714,81724.0,81723.0,2e-07]
[1744281571233,1.66704714,81724.0,81723.0,2e-07]
[1744281571434,1.66704714,81724.0,81714.0,0.0003366]
[1744281571435,0.34397,81715.0,81714.0,0.0003366]
[1744281571633,0.46452382,81715.0,81714.0,0.0003366]
[1744281571836,0.49529734,81715.0,81714.0,0.0003366]
[1744281571995,1.24969734,81715.0,81714.0,0.0061206]
[1744281572195,1.80524981,81715.0,81714.0,0.0061206]
[1744281573213,1.81733393,81715.0,81714.0,0.0061206]
[1744281574884,1.65820981,81715.0,81714.0,0.0061206]
[1744281578807,1.65820981,81715.0,81714.0,6e-07]
[1744281579007,1.7786424,81715.0,81714.0,6e-07]
[1744281579204,1.73170981,81715.0,81714.0,6e-07]
[1744281579507,1.65820981,81715.0,81714.0,6e-07]
[1744281579908,1.80528981,81715.0,81714.0,6e-07]
[1744281581139,1.79677734,81715.0,81714.0,6e-07]
[1744281585081,1.80527882,81715.0,81714.0,6e-07]
[1744281585878,1.80527882,81715.0,81690.0,0.0003366]
[1744281585879,0.257066,81691.0,81690.0,0.0003366]
[1744281586077,0.38331484,81691.0,81690.0,0.0003366]
[1744281586279,0.38331484,81691.0,81690.0,0.0064566]
[1744281586474,0.73401484,81691.0,81690.0,0.0064566]
[1744281586937,0.68771484,81691.0,81690.0,0.0064566]
[1744281587140,0.68771484,81691.0,81690.0,0.00688214]
[1744281587881,0.43064884,81691.0,81690.0,0.00688214]
[1744281588070,0.68771484,81691.0,81690.0,0.00688214]
[1744281588956,0.67547384,81691.0,81690.0,0.00688214]
[1744281589129,0.68771484,81691.0,81690.0,0.00688214]
[1744281592944,0.69623186,81691.0,81690.0,0.00688214]
[1744281593361,0.68399086,81691.0,81690.0,0.00688214]
[1744281593700,0.03916586,81691.0,81690.0,0.30985114]
[1744281593858,0.03064884,81691.0,81690.0,0.30985114]
[1744281594060,0.244789,81703.0,81697.0,0.244804]
[1744281594264,0.244795,81701.0,81697.0,0.0061202]
[1744281594476,0.00852505,81702.0,81697.0,0.0061202]
[1744281594671,0.00852505,81702.0,81701.0,0.244795]
[1744281594889,0.02076305,81708.0,81701.0,0.2509149]
[1744281595118,0.244792,81702.0,81701.0,0.0061199]
[1744281595302,0.244789,81703.0,81701.0,0.02899626]
[1744281595656,0.244792,81702.0,81701.0,0.0061199]
[1744281596617,0.25331466,81702.0,81701.0,0.0061199]
[1744281597918,0.26555366,81702.0,81701.0,0.0061199]
[1744281598317,0.31455366,81702.0,81701.0,0.0061199]
[1744281600064,0.354931,81702.0,81701.0,0.0061199]
[1744281601707,0.36345668,81702.0,81701.0,0.0061199]
[1744281602235,0.76345668,81702.0,81701.0,0.0061199]
[1744281602887,0.8840105,81702.0,81701.0,0.0061199]
[1744281603110,1.2240105,81702.0,81701.0,0.0061199]
[1744281605213,1.2240105,81702.0,81701.0,9e-07]
[1744281605419,1.6384105,81702.0,81701.0,9e-07]
[1744281606398,1.7119105,81702.0,81701.0,9e-07]
[1744281607259,1.74252231,81702.0,81701.0,9e-07]
[1744281607925,1.74252231,81702.0,81686.0,4e-08]
[1744281607926,0.597077,81687.0,81686.0,4e-08]
[1744281608145,0.597077,81687.0,81686.0,4.254e-05]
[1744281608146,1.27835082,81687.0,81686.0,4.254e-05]
[1744281608363,1.31737871,81687.0,81686.0,0.00616254]
[1744281608807,1.71737871,81687.0,81686.0,0.00616254]
[1744281611379,1.45050489,81687.0,81686.0,0.00616254]
[1744281611578,1.11050489,81687.0,81686.0,0.00616254]
[1744281612007,1.10197921,81687.0,81686.0,0.00616254]
[1744281612975,1.071477,81687.0,81686.0,0.00616254]
[1744281613177,1.10194573,81687.0,81686.0,0.00616254]
[1744281613382,1.11044363,81687.0,81686.0,0.00616254]
[1744281620170,0.45336663,81687.0,81686.0,0.25100154]
[1744281620391,0.03896663,81687.0,81686.0,0.49533721]
[1744281620596,0.25702,81706.0,81692.0,0.24482]
[1744281620597,0.244802,81699.0,81692.0,0.24482]
[1744281620814,0.244802,81699.0,81692.0,0.0061206]
[1744281620815,0.03054928,81698.0,81692.0,0.0061206]
[1744281620968,0.03054928,81698.0,81697.0,0.244807]
[1744281621175,0.012238,81711.0,81705.0,0.244781]
[1744281621379,0.03904346,81710.0,81706.0,0.012239]
[1744281621586,0.0085002,81710.0,81709.0,0.244771]
[1744281621784,0.03904429,81710.0,81709.0,0.0061193]
[1744281622171,0.03054409,81710.0,81709.0,0.0061193]
[1744281622582,0.28755009,81710.0,81709.0,0.0061193]
[1744281625317,0.68755009,81710.0,81709.0,0.0061193]
[1744281630423,0.69605158,81710.0,81709.0,0.0061193]
[1744281631930,0.70866809,81710.0,81709.0,0.0061193]
[1744281635358,0.9496545,81710.0,81709.0,0.0061193]
[1744281635534,0.87662191,81710.0,81709.0,3e-07]